bitfinex/quotes_BTCUSD_20211001
["timestamp","ask_amount","ask_price","bid_price","bid_amount"]
[1633093550455,0.05121898,47330.0,47329.0,0.00785854]
[1633093551256,0.05121898,47330.0,47329.0,0.18265854]
[1633093552459,0.05121898,47330.0,47329.0,0.14165854]
[1633093553313,0.05121898,47330.0,47329.0,0.18165854]
[1633093554662,0.05121898,47330.0,47329.0,0.14165854]
[1633093555259,0.05121898,47330.0,47329.0,0.18165854]
[1633093556865,0.05121898,47330.0,47329.0,0.14165854]
[1633093557261,0.05121898,47330.0,47329.0,0.18165854]
[1633093558464,0.05121898,47330.0,47329.0,0.14165854]
[1633093558662,0.05121898,47330.0,47329.0,0.1428815]
[1633093559323,0.05121898,47330.0,47329.0,0.9291915]
[1633093559462,0.05121898,47330.0,47329.0,0.76816755]
[1633093559669,0.05121898,47330.0,47329.0,0.4714105]
[1633093560071,0.05121898,47330.0,47329.0,0.4719406]
[1633093560265,0.05121898,47330.0,47329.0,0.4306405]
[1633093560462,0.05121898,47330.0,47329.0,0.2351005]
[1633093560862,0.03896029,47330.0,47329.0,0.2351005]
[1633093561263,0.03896029,47330.0,47329.0,0.2771005]
[1633093562064,0.03822656,47330.0,47329.0,0.2771005]
[1633093563263,0.03822656,47330.0,47329.0,0.2781005]
[1633093564865,0.03822656,47330.0,47329.0,0.2351005]
[1633093565331,0.03822656,47330.0,47329.0,0.2801005]
[1633093566671,0.03322656,47330.0,47329.0,0.2351005]
[1633093566870,0.03322656,47330.0,47329.0,0.43631452]
[1633093567069,0.03322656,47330.0,47329.0,0.2351005]
[1633093567269,0.03322656,47330.0,47329.0,0.2801005]
[1633093567670,0.03322656,47330.0,47329.0,0.48135383]
[1633093568572,0.03322656,47330.0,47329.0,0.48188393]
[1633093568774,0.03322656,47330.0,47329.0,0.43635383]
[1633093569372,0.03322656,47330.0,47329.0,0.48035383]
[1633093569772,0.03322656,47330.0,47329.0,0.47535383]
[1633093569973,0.03322656,47330.0,47329.0,0.34456913]
[1633093570380,0.25642656,47330.0,47329.0,0.34456913]
[1633093570580,0.14488457,47323.0,47319.0,0.18376208]
[1633093570779,0.50124606,47320.0,47314.0,0.1843294]
[1633093570978,0.34945566,47319.0,47314.0,0.00055]
[1633093571179,0.0186,47319.0,47314.0,0.00055]
[1633093571439,0.023,47320.0,47316.0,0.07144565]
[1633093571639,0.023,47320.0,47317.0,0.316988]
[1633093571837,0.023,47320.0,47319.0,2.19892809]
[1633093572044,0.14363299,47323.0,47320.0,1.3]
[1633093572242,0.56193152,47326.0,47323.0,0.14363299]
[1633093572637,0.55693152,47326.0,47325.0,0.09965207]
[1633093572837,0.55693152,47326.0,47325.0,0.32106382]
[1633093573042,0.55702812,47326.0,47325.0,0.32106382]
[1633093573437,0.55702812,47326.0,47325.0,0.35906382]
[1633093574037,0.55702812,47326.0,47325.0,0.36406382]
[1633093574440,0.44702812,47326.0,47325.0,1.01406382]
[1633093574642,0.44702812,47326.0,47325.0,0.97606382]
[1633093574840,0.44702812,47326.0,47325.0,0.32606382]
[1633093575043,0.44702812,47326.0,47325.0,0.77606382]
[1633093575240,0.44702812,47326.0,47325.0,0.32606382]
[1633093575440,0.44702812,47326.0,47325.0,0.36406382]
[1633093575839,0.44702812,47326.0,47325.0,0.36646684]
[1633093576441,0.44702812,47326.0,47325.0,0.36774977]
[1633093576642,0.44702812,47326.0,47325.0,0.32974977]
[1633093576844,0.12243965,47334.0,47326.0,0.97451771]
[1633093577042,0.12243965,47334.0,47327.0,0.08853776]
[1633093578248,0.12243965,47334.0,47328.0,0.316912]
[1633093578448,0.12243965,47334.0,47329.0,0.6512683]
[1633093578645,0.12243965,47334.0,47329.0,0.0012683]
[1633093578845,0.12243965,47334.0,47329.0,0.0062683]
[1633093579446,0.12243965,47334.0,47329.0,0.0472683]
[1633093580251,0.25642656,47330.0,47329.0,0.046]
[1633093580451,0.03572634,47330.0,47329.0,0.046]
[1633093580648,0.03446607,47330.0,47329.0,0.005]
[1633093580853,0.25454978,47330.0,47326.0,0.22451771]
[1633093581050,0.2495191,47329.0,47326.0,0.22451771]
[1633093581250,0.48790616,47329.0,47326.0,0.22451771]
[1633093581449,0.218814,47328.0,47326.0,0.24551771]
[1633093581649,0.2495191,47329.0,47326.0,0.24551771]
[1633093581852,0.317004,47328.0,47326.0,0.24551771]
[1633093582450,0.31426743,47328.0,47326.0,0.24551771]
[1633093583249,0.23834,47327.0,47326.0,0.22451771]
[1633093584051,0.036,47328.0,47326.0,0.22451771]
[1633093584854,0.03573578,47330.0,47326.0,0.22451771]
[1633093585251,0.03573578,47330.0,47326.0,0.457398]
[1633093585457,0.07973578,47330.0,47326.0,0.22451771]
[1633093585652,0.07846607,47330.0,47326.0,0.22451771]
[1633093586453,0.07846607,47330.0,47328.0,0.29892027]
[1633093586659,0.07846607,47330.0,47328.0,0.22748371]
[1633093586856,0.03446607,47330.0,47328.0,0.22748371]
[1633093587460,0.04822656,47330.0,47328.0,0.25748371]
[1633093588257,0.04822656,47330.0,47329.0,0.57998826]
[1633093588458,0.04822656,47330.0,47329.0,0.07998826]
[1633093588857,0.04822656,47330.0,47329.0,0.39689226]
[1633093589258,0.03322656,47330.0,47329.0,0.52739226]
[1633093589457,0.03322656,47330.0,47329.0,0.56239226]
[1633093590758,0.03322656,47330.0,47329.0,0.53239226]
[1633093590959,0.03322656,47330.0,47329.0,0.38307226]
[1633093591358,0.03322656,47330.0,47329.0,0.41607226]
[1633093591557,0.03322656,47330.0,47329.0,0.41847699]
[1633093592159,0.03322656,47330.0,47329.0,0.41974424]
[1633093592759,0.03322656,47330.0,47329.0,0.38674424]
[1633093592960,0.03322656,47330.0,47329.0,0.93674424]
[1633093593359,0.03322656,47330.0,47329.0,0.97074424]
[1633093593560,0.00871381,47330.0,47329.0,0.42074424]
[1633093593763,0.5,47340.0,47329.0,0.42074424]
[1633093593960,0.5,47340.0,47332.0,0.11422519]
[1633093594360,8.451e-05,47333.0,47332.0,0.11422519]
[1633093594561,8.451e-05,47333.0,47329.0,0.1600499]
[1633093594758,8.451e-05,47333.0,47329.0,0.09884024]
[1633093594958,8.451e-05,47333.0,47331.0,0.316892]
[1633093595359,0.5,47340.0,47334.0,0.211261]
[1633093596464,0.00126098,47341.0,47329.0,0.09760767]
[1633093596859,7.24e-05,47340.0,47329.0,0.00240473]
[1633093597059,7.24e-05,47340.0,47329.0,0.00740473]
[1633093597458,7.24e-05,47340.0,47332.0,0.07517916]
[1633093597459,0.316929,47338.0,47332.0,0.07517916]
[1633093597659,0.015,47340.0,47332.0,0.08017916]
[1633093598460,0.015,47340.0,47339.0,0.23994296]
[1633093598667,0.015,47340.0,47339.0,0.43984296]
[1633093598859,9.657e-05,47340.0,47339.0,0.43984296]
[1633093599063,0.08278583,47341.0,47339.0,0.43984296]
[1633093599261,0.5,47343.0,47339.0,0.43984296]
[1633093599660,0.5,47343.0,47339.0,0.23994296]
[1633093600261,0.316908,47342.0,47339.0,0.23994296]
[1633093600463,0.535722,47342.0,47339.0,0.23994296]
[1633093600862,0.316908,47342.0,47339.0,0.23994296]
[1633093601262,0.00125465,47340.0,47335.0,0.005]
[1633093601464,7.24e-05,47341.0,47335.0,0.005]
[1633093601670,7.24e-05,47342.0,47335.0,0.005]
[1633093602066,0.5,47343.0,47341.0,0.1998]
[1633093602267,0.218814,47342.0,47341.0,0.20102724]
[1633093602568,0.06121373,47351.0,47341.0,0.20102724]
[1633093602569,0.06120424,47355.0,47350.0,0.74136441]
[1633093602767,0.15646244,47368.0,47352.0,0.00129733]
[1633093602768,0.06120303,47358.0,47352.0,0.00129733]
[1633093602968,0.06120074,47361.0,47355.0,0.211153]
[1633093603166,0.06119267,47367.0,47362.0,0.28901721]
[1633093603363,0.15639004,47368.0,47363.0,0.30586521]
[1633093603564,0.15639004,47368.0,47365.0,0.23481329]
[1633093603766,0.15639004,47368.0,47366.0,0.260991]
[1633093603965,0.15639004,47368.0,47362.0,0.211156]
[1633093603966,0.94326631,47367.0,47362.0,0.211156]
[1633093604176,0.00122998,47358.0,47357.0,0.005]
[1633093604374,0.72130635,47358.0,47357.0,0.005]
[1633093604668,2.12808596,47358.0,47357.0,0.005]
[1633093604866,2.12808596,47358.0,47350.0,0.74136441]
[1633093605068,0.2232,47354.0,47350.0,0.74136441]
[1633093605266,0.00013275,47351.0,47350.0,0.74136441]
[1633093605469,0.00013275,47351.0,47350.0,0.65690852]
[1633093606170,1.58035406,47351.0,47350.0,0.65690852]
[1633093606370,0.44470837,47351.0,47350.0,0.65690852]
[1633093606568,0.44463597,47351.0,47350.0,0.65690852]
[1633093607567,0.49223597,47351.0,47350.0,0.65690852]
[1633093608970,0.47723597,47351.0,47350.0,0.65690852]
[1633093609173,0.26762593,47351.0,47350.0,0.65690852]
[1633093609376,0.23862593,47351.0,47350.0,0.65690852]
[1633093609571,0.26862593,47351.0,47350.0,0.65690852]
[1633093609973,0.26240046,47351.0,47350.0,0.85670852]
[1633093610172,0.24380046,47351.0,47350.0,0.85670852]
[1633093610975,0.42372817,47354.0,47350.0,0.85670852]
[1633093611176,0.00123617,47354.0,47350.0,0.85670852]
[1633093611577,0.03523617,47354.0,47350.0,0.85670852]
[1633093611775,0.03023617,47354.0,47350.0,0.85670852]
[1633093611978,0.0314529,47354.0,47350.0,0.85670852]
[1633093612773,0.00121673,47354.0,47350.0,0.85670852]
[1633093613572,0.03221673,47354.0,47350.0,0.85670852]
[1633093613976,0.03221673,47354.0,47350.0,0.65690852]
[1633093614176,0.01721673,47354.0,47351.0,0.004996]
[1633093614376,0.01721673,47354.0,47350.0,0.65690852]
[1633093614579,0.01721673,47354.0,47350.0,0.65736622]
[1633093614775,0.31683,47355.0,47350.0,0.65690852]
[1633093615577,0.31683,47355.0,47353.0,0.1998]
[1633093615776,0.21881,47354.0,47353.0,0.1998]
[1633093616178,0.31683,47355.0,47353.0,0.1998]
[1633093616578,0.31683,47355.0,47350.0,0.65690852]
[1633093617181,0.31683,47355.0,47350.0,0.65932261]
[1633093617979,0.31683,47355.0,47350.0,0.64932261]
[1633093618381,0.31683,47355.0,47351.0,0.211214]
[1633093618584,0.31683,47355.0,47352.0,0.1998]
[1633093619446,0.00391657,47363.0,47360.0,0.09538073]
[1633093619644,0.00391657,47363.0,47361.0,0.28800564]
[1633093619848,0.00012065,47361.0,47359.0,0.00120999]
[1633093620043,0.00012065,47361.0,47360.0,0.004991]
[1633093620243,0.00010859,47360.0,47354.0,0.36826394]
[1633093620446,0.00391657,47363.0,47356.0,0.07962437]
[1633093620646,0.32068757,47363.0,47357.0,0.26592037]
[1633093620842,0.32068757,47363.0,47357.0,0.19965542]
[1633093621242,0.32068757,47363.0,47360.0,0.211141]
[1633093621442,6.398e-05,47362.0,47360.0,0.211141]
[1633093621642,0.00012065,47361.0,47360.0,0.211141]
[1633093622243,0.21960624,47365.0,47362.0,0.21]
[1633093622844,0.20960624,47365.0,47362.0,0.21]
[1633093623244,0.20960624,47365.0,47360.0,0.41356339]
[1633093623445,0.422365,47367.0,47360.0,0.41356339]
[1633093623644,0.316759,47365.0,47360.0,0.3291075]
[1633093623848,0.1479715,47371.0,47362.0,0.211178]
[1633093624047,0.1479715,47371.0,47366.0,0.38194131]
[1633093624246,0.1479715,47371.0,47367.0,0.27154816]
[1633093624449,0.1479715,47371.0,47366.0,0.00122096]
[1633093624645,0.1479715,47371.0,47366.0,0.22284138]
[1633093624847,7.238e-05,47367.0,47366.0,0.43396638]
[1633093625050,7.238e-05,47367.0,47366.0,0.43772442]
[1633093625646,7.238e-05,47367.0,47366.0,0.46572442]
[1633093626248,0.0002,47372.0,47367.0,0.004979]
[1633093626448,0.0002,47372.0,47366.0,0.46074542]
[1633093626847,0.0002,47372.0,47371.0,0.1998]
[1633093627049,0.49217897,47376.0,47371.0,0.1998]
[1633093627250,6.032e-05,47372.0,47371.0,0.1998]
[1633093627655,6.032e-05,47372.0,47371.0,0.20242633]
[1633093629850,0.0004,47378.0,47371.0,0.20242633]
[1633093629851,0.00085828,47377.0,47371.0,0.20242633]
[1633093630051,0.0002,47382.0,47375.0,0.22337668]
[1633093630259,7.307e-05,47383.0,47372.0,0.2443376]
[1633093630452,7.307e-05,47383.0,47371.0,0.70262633]
[1633093630653,7.24e-05,47382.0,47371.0,0.00262633]
[1633093630852,0.0907225,47381.0,47372.0,0.08912105]
[1633093631051,0.0904625,47381.0,47371.0,0.00262633]
[1633093631252,7.24e-05,47380.0,47371.0,0.00262633]
[1633093631451,7.24e-05,47380.0,47374.0,0.21111]
[1633093631651,0.62763163,47381.0,47374.0,0.21111]
[1633093631652,0.0340724,47381.0,47374.0,0.21111]
[1633093631850,0.034,47381.0,47374.0,0.21111]
[1633093632052,0.034,47381.0,47379.0,0.1998]
[1633093632251,0.034,47381.0,47379.0,0.01600356]
[1633093632252,0.21881,47380.0,47379.0,0.01600356]
[1633093632451,0.21890648,47380.0,47379.0,0.01600356]
[1633093632651,0.28647314,47380.0,47379.0,0.01600356]
[1633093632857,2.75,47370.0,47357.0,0.00120515]
[1633093633061,0.00125481,47352.0,47351.0,0.5]
[1633093633258,0.31211567,47350.0,47345.0,0.06100814]
[1633093633453,0.31211567,47350.0,47342.0,0.09409343]
[1633093633454,0.0844345,47345.0,47342.0,0.09409343]
[1633093633655,0.5,47343.0,47342.0,0.09409343]
[1633093633854,1.63555253,47343.0,47342.0,0.09409343]
[1633093634053,2.13043807,47343.0,47342.0,0.09409343]
[1633093634254,2.45075775,47343.0,47342.0,0.09409343]
[1633093634458,0.73861683,47343.0,47342.0,0.09409343]
[1633093635458,1.00372382,47343.0,47342.0,0.09409343]
[1633093635654,1.25692382,47343.0,47342.0,0.09409343]
[1633093635855,1.25692382,47343.0,47331.0,0.005]
[1633093635856,0.65,47342.0,47331.0,0.005]
[1633093636054,1.45813573,47343.0,47331.0,0.005]
[1633093636055,0.50122001,47332.0,47331.0,0.005]
[1633093636255,1.07572231,47332.0,47331.0,0.005]
[1633093636656,0.8004968,47332.0,47323.0,0.09623773]
[1633093636856,0.5816878,47332.0,47323.0,0.09623773]
[1633093637056,0.00127964,47326.0,47323.0,0.09623773]
[1633093637257,0.27129418,47326.0,47317.0,0.0004]
[1633093637456,0.27129418,47326.0,47325.0,0.00054335]
[1633093637457,0.00127964,47326.0,47325.0,0.00054335]
[1633093637660,0.23808864,47326.0,47325.0,0.00054335]
[1633093637856,0.01927964,47326.0,47325.0,0.00054335]
[1633093638065,0.018,47326.0,47325.0,0.0024135]
[1633093638256,0.018,47326.0,47325.0,0.14509334]
[1633093638456,0.018,47326.0,47325.0,0.56504234]
[1633093638656,0.008,47326.0,47325.0,0.56504234]
[1633093638856,0.00127021,47329.0,47325.0,0.56504234]
[1633093639056,0.00127021,47329.0,47325.0,0.65113765]
[1633093639257,0.25045657,47330.0,47328.0,0.00050709]
[1633093639458,0.24667751,47333.0,47325.0,0.20010139]
[1633093639656,0.26016713,47333.0,47325.0,0.24110139]
[1633093640256,0.316993,47328.0,47325.0,0.04191954]
[1633093640465,2.07844464,47327.0,47325.0,0.04191954]
[1633093640671,0.237409,47326.0,47325.0,0.04191954]
[1633093640858,0.46181503,47326.0,47325.0,0.04191954]
[1633093641060,1.85032035,47326.0,47325.0,0.00091954]
[1633093641257,1.62598672,47326.0,47325.0,0.00091954]
[1633093641661,1.5479914,47326.0,47316.0,0.0002]
[1633093641861,0.5,47318.0,47316.0,0.0002]
[1633093642057,1.8594814,47318.0,47316.0,0.0002]
[1633093642256,1.8594814,47318.0,47317.0,0.00053285]
[1633093642458,0.737409,47318.0,47317.0,0.00053285]
[1633093643661,1.892409,47318.0,47317.0,0.00053285]
[1633093644060,2.115609,47318.0,47317.0,0.00053285]
[1633093644264,2.96691305,47318.0,47317.0,0.00053285]
[1633093644462,3.16691305,47318.0,47317.0,0.00053285]
[1633093644660,2.31691305,47318.0,47317.0,0.00053285]
[1633093644860,2.06071305,47318.0,47317.0,0.00053285]
[1633093645061,1.8594814,47318.0,47317.0,0.00053285]
[1633093645660,1.890409,47318.0,47317.0,0.00053285]
[1633093645865,0.768409,47318.0,47317.0,0.00053285]
[1633093646863,0.237409,47318.0,47317.0,0.00053285]
[1633093647066,0.00129312,47322.0,47317.0,0.00053285]
[1633093647067,0.0186,47326.0,47317.0,0.00183085]
[1633093647465,0.0186,47326.0,47321.0,8.454e-05]
[1633093647664,0.218809,47325.0,47321.0,8.454e-05]
[1633093648469,0.42521359,47325.0,47321.0,0.21495678]
[1633093648865,0.218809,47325.0,47321.0,0.21495678]
[1633093649066,0.335643,47326.0,47321.0,0.21495678]
[1633093649265,0.335643,47326.0,47321.0,8.454e-05]
[1633093649465,0.218809,47325.0,47321.0,8.454e-05]
[1633093649867,0.3016773,47325.0,47321.0,8.454e-05]
[1633093650467,0.2177482,47325.0,47322.0,0.34129123]
[1633093651072,0.2177482,47325.0,47322.0,0.22163928]
[1633093651666,0.2557482,47325.0,47322.0,0.22163928]
[1633093653071,0.2177482,47325.0,47322.0,0.22163928]
[1633093653268,0.5347992,47325.0,47322.0,0.22163928]
[1633093653672,0.5787992,47325.0,47322.0,0.22163928]
[1633093653869,0.2617482,47325.0,47322.0,0.22163928]
[1633093654068,0.2617482,47325.0,47323.0,0.0004577]
[1633093654471,0.2617482,47325.0,47322.0,0.22163928]
[1633093654472,0.2617482,47325.0,47322.0,0.22209698]
[1633093654874,1.087,47342.0,47324.0,2.45127854]
[1633093655072,0.24114037,47341.0,47334.0,0.11392454]
[1633093655270,0.218822,47338.0,47335.0,0.0004577]
[1633093655571,7.242e-05,47336.0,47328.0,0.0004577]
[1633093655772,0.218822,47335.0,47328.0,0.0004577]
[1633093655971,0.218822,47335.0,47334.0,0.18501057]
[1633093656371,0.71888235,47335.0,47328.0,0.0004577]
[1633093656770,0.71888235,47335.0,47327.0,0.0004577]
[1633093657372,0.22849804,47332.0,47328.0,0.20657421]
[1633093657573,0.317017,47330.0,47328.0,0.20657421]
[1633093657773,0.2183643,47329.0,47325.0,0.00417657]
[1633093658172,0.2183643,47329.0,47327.0,0.21076108]
[1633093658479,0.55789429,47346.0,47342.0,0.10692542]
[1633093658688,0.09383343,47341.0,47339.0,0.29467262]
[1633093658879,0.09383343,47341.0,47328.0,0.00132975]
[1633093659079,0.09383343,47341.0,47329.0,0.0186]
[1633093659276,0.09383343,47341.0,47333.0,0.00120784]
[1633093659473,0.21882,47340.0,47333.0,0.00120784]
[1633093659674,0.0878105,47338.0,47332.0,0.10947448]
[1633093659874,0.41078443,47341.0,47332.0,0.10947448]
[1633093660079,0.41078443,47341.0,47340.0,1.83827489]
[1633093660080,0.09383343,47341.0,47340.0,1.83827489]
[1633093660275,0.09383343,47341.0,47340.0,0.63275205]
[1633093660474,0.09390585,47341.0,47340.0,0.63275205]
[1633093660676,0.09390585,47341.0,47340.0,0.03275205]
[1633093660874,0.09390585,47341.0,47337.0,0.0186]
[1633093661077,0.09390585,47341.0,47338.0,0.0012389]
[1633093661281,6.035e-05,47340.0,47338.0,0.0012389]
[1633093661675,6.035e-05,47340.0,47338.0,0.0502389]
[1633093662676,6.035e-05,47340.0,47338.0,0.049]
[1633093662876,0.08889378,47341.0,47339.0,0.6]
[1633093663075,0.08889378,47341.0,47338.0,0.005]
[1633093663076,0.08864867,47341.0,47338.0,0.005]
[1633093663276,0.08864867,47341.0,47340.0,0.00127156]
[1633093663476,0.08864867,47341.0,47340.0,0.08255312]
[1633093663881,0.08864867,47341.0,47339.0,0.40843809]
[1633093663882,0.08864867,47341.0,47338.0,0.046]
[1633093664879,0.08864867,47341.0,47338.0,0.005]
[1633093665777,0.08864867,47341.0,47338.0,0.042]
[1633093665978,0.21882,47340.0,47338.0,0.042]
[1633093666581,0.21882,47340.0,47339.0,0.1998]
[1633093667177,0.08864867,47341.0,47339.0,0.1998]
[1633093667781,0.08864867,47341.0,47339.0,0.2388]
[1633093668176,0.21882,47340.0,47339.0,0.2388]
[1633093668377,0.45913102,47340.0,47339.0,0.2388]
[1633093668576,0.21882,47340.0,47339.0,0.2388]
[1633093668778,0.51662038,47340.0,47339.0,0.2388]
[1633093668976,0.51662038,47340.0,47339.0,0.1998]
[1633093669577,0.51662038,47340.0,47339.0,0.2408]
[1633093670378,0.51171793,47340.0,47339.0,0.041]
[1633093670579,0.21391755,47340.0,47339.0,0.041]
[1633093670782,0.08864867,47341.0,47339.0,0.04220769]
[1633093670980,0.08864867,47341.0,47339.0,0.00120769]
[1633093671782,0.08864867,47341.0,47339.0,0.04020769]
[1633093672778,0.3113471,47340.0,47339.0,0.04020769]
[1633093672977,0.3113471,47340.0,47339.0,0.00120769]
[1633093673179,0.5301641,47340.0,47339.0,0.00120769]
[1633093673582,0.5301641,47340.0,47334.0,0.211263]
[1633093673781,0.3113471,47340.0,47339.0,0.04]
[1633093673983,0.5301641,47340.0,47339.0,0.04]
[1633093674979,0.5301641,47340.0,47334.0,0.211263]
[1633093675180,0.3113471,47340.0,47334.0,0.211263]
[1633093675783,0.3113471,47340.0,47334.0,0.251263]
[1633093676183,0.3113471,47340.0,47339.0,0.1998]
[1633093676381,0.53702009,47340.0,47339.0,0.1998]
[1633093677782,0.53702009,47340.0,47339.0,0.2378]
[1633093678182,0.535747,47340.0,47339.0,0.2378]
[1633093679184,0.535747,47340.0,47339.0,0.1998]
[1633093679440,0.533247,47340.0,47339.0,0.187842]
[1633093679840,0.31693,47340.0,47339.0,0.224842]
[1633093680042,0.31693,47340.0,47339.0,0.037]
[1633093681043,0.31693,47340.0,47329.0,0.00122229]
[1633093681242,0.55535918,47340.0,47329.0,0.00122229]
[1633093681443,0.22669257,47335.0,47331.0,0.09523023]
[1633093681641,0.21529439,47335.0,47331.0,0.09523023]
[1633093681844,0.55535918,47340.0,47331.0,0.08668923]
[1633093682043,0.55535918,47340.0,47339.0,0.1878]
[1633093682246,0.31693,47340.0,47339.0,0.1878]
[1633093683442,0.31693,47340.0,47339.0,0.179259]
[1633093683846,0.31693,47340.0,47339.0,0.227259]
[1633093684042,0.31693,47340.0,47339.0,0.22926568]
[1633093685650,0.08864867,47341.0,47339.0,0.18246838]
[1633093685848,0.08864867,47341.0,47340.0,1.85125283]
[1633093686046,0.08864867,47341.0,47340.0,0.04020083]
[1633093686245,0.08864867,47341.0,47340.0,0.00125283]
[1633093686445,0.08864867,47341.0,47339.0,0.22826568]
[1633093687349,0.32669377,47341.0,47339.0,0.22826568]
[1633093687746,0.08864867,47341.0,47339.0,0.21926568]
[1633093688546,0.08864867,47341.0,47339.0,0.30486925]
[1633093688747,0.08864867,47341.0,47339.0,0.30986925]
[1633093689145,0.08864867,47341.0,47339.0,0.09261025]
[1633093689548,0.08864867,47341.0,47340.0,0.0025]
[1633093689749,0.08129563,47341.0,47340.0,0.0025]
[1633093690747,0.08129563,47341.0,47340.0,0.0075]
[1633093691748,0.08129563,47341.0,47340.0,0.0455]
[1633093692148,0.08129563,47341.0,47340.0,0.2247]
[1633093692552,0.08129563,47341.0,47340.0,0.2197]
[1633093693149,0.08129563,47341.0,47340.0,0.1817]
[1633093693348,0.08119563,47341.0,47340.0,0.1817]
[1633093693748,0.08119563,47341.0,47340.0,0.2217]
[1633093695157,0.07119563,47341.0,47340.0,0.1817]
[1633093695751,0.07119563,47341.0,47340.0,0.2217]
[1633093697151,0.07119563,47341.0,47340.0,0.1817]
[1633093697757,0.07119563,47341.0,47340.0,0.2227]
[1633093699154,0.07119563,47341.0,47340.0,0.1817]
[1633093699354,0.06619563,47341.0,47340.0,0.1817]
[1633093699754,0.06619563,47341.0,47340.0,0.2227]
[1633093702055,0.06619563,47341.0,47340.0,0.2277]
[1633093702860,0.06619563,47341.0,47340.0,0.16641672]
[1633093703057,0.06619563,47341.0,47340.0,0.16764476]
[1633093703257,0.06619563,47341.0,47340.0,0.12664476]
[1633093703457,0.5,47345.0,47340.0,0.00872804]
[1633093704057,0.0844345,47346.0,47340.0,0.00872804]
[1633093704256,0.0844345,47346.0,47341.0,0.211247]
[1633093704456,0.0844345,47346.0,47343.0,0.211246]
[1633093704859,0.00128865,47344.0,47343.0,0.211246]
[1633093706256,0.00128865,47344.0,47343.0,0.248246]
[1633093706657,0.0795336,47346.0,47343.0,0.248246]
[1633093706858,0.0803266,47346.0,47343.0,0.248246]
[1633093707862,0.06173933,47353.0,47343.0,0.248246]
[1633093707863,0.06121018,47356.0,47354.0,2.63126646]
[1633093708069,0.06120825,47358.0,47355.0,0.2837994]
[1633093708263,1.50126805,47357.0,47355.0,0.2837994]
[1633093708461,0.218817,47356.0,47354.0,0.03074646]
[1633093708860,0.23934768,47355.0,47354.0,0.03074646]
[1633093709063,0.45816468,47355.0,47354.0,0.03074646]
[1633093709259,1.58016468,47355.0,47354.0,0.03074646]
[1633093709459,1.34099801,47355.0,47354.0,0.03275825]
[1633093709662,1.12218101,47355.0,47354.0,0.03275825]
[1633093709859,1.12218101,47355.0,47354.0,0.30842988]
[1633093710061,0.00018101,47355.0,47354.0,0.03275825]
[1633093710463,0.00018101,47355.0,47354.0,0.30777838]
[1633093710665,0.00018101,47355.0,47354.0,1.24670138]
[1633093710860,0.00018101,47355.0,47354.0,0.34670138]
[1633093711661,0.37926805,47357.0,47355.0,0.08512907]
[1633093712061,0.37926805,47357.0,47356.0,0.11634516]
[1633093712263,0.37926805,47357.0,47355.0,0.08512907]
[1633093712463,0.37926805,47357.0,47355.0,0.09012907]
[1633093713269,0.37926805,47357.0,47356.0,0.316738]
[1633093713466,0.37926805,47357.0,47356.0,0.355658]
[1633093713666,0.37926805,47357.0,47356.0,0.473558]
[1633093714268,0.37926805,47357.0,47356.0,0.15682]
[1633093714466,0.37926805,47357.0,47356.0,0.1179]
[1633093714666,0.37926805,47357.0,47356.0,0.11991276]
[1633093715465,0.37926805,47357.0,47356.0,0.12114068]
[1633093715870,0.85902207,47360.0,47357.0,0.0803266]
[1633093716073,0.85902207,47360.0,47359.0,0.00127547]
[1633093716267,0.85902207,47360.0,47359.0,0.0186]
[1633093716466,0.85908239,47360.0,47359.0,0.0186]
[1633093717270,1.04520624,47360.0,47359.0,0.5186]
[1633093717470,1.04520624,47360.0,47359.0,0.5]
[1633093717867,1.04520624,47360.0,47359.0,0.6179]
[1633093718177,0.008541,47359.0,47357.0,0.0803266]
[1633093718373,0.73863874,47358.0,47357.0,0.0803266]
[1633093718570,0.0647083,47356.0,47354.0,0.03074646]
[1633093718770,0.47416887,47355.0,47354.0,0.03074646]
[1633093718973,1.98778156,47355.0,47354.0,0.03074646]
[1633093719170,1.7336537,47355.0,47354.0,0.03074646]
[1633093719370,1.9568537,47355.0,47354.0,0.03074646]
[1633093719969,1.9568537,47355.0,47354.0,0.03215806]
[1633093720772,1.65943111,47355.0,47354.0,0.03215806]
[1633093720978,0.2193471,47355.0,47354.0,0.03215806]
[1633093721172,0.218817,47355.0,47354.0,0.03215806]
[1633093721372,0.0647083,47356.0,47354.0,0.03215806]
[1633093721972,0.218817,47355.0,47354.0,0.03215806]
[1633093722172,0.46517418,47355.0,47354.0,0.03215806]
[1633093722373,0.217772,47355.0,47354.0,0.03215806]
[1633093724178,0.46317925,47355.0,47354.0,0.03215806]
[1633093724579,0.217772,47355.0,47354.0,0.06711806]
[1633093725181,0.0647083,47356.0,47354.0,0.06711806]
[1633093725980,0.218812,47355.0,47354.0,0.06711806]
[1633093726185,1.5873145,47355.0,47354.0,0.06711806]
[1633093726381,1.340812,47355.0,47354.0,0.06711806]
[1633093727379,0.218812,47355.0,47354.0,0.06711806]
[1633093727583,0.00999,47355.0,47354.0,0.06711806]
[1633093728788,0.00999,47355.0,47354.0,0.26701806]
[1633093728984,0.47793858,47355.0,47354.0,0.26701806]
[1633093729384,1.4373795,47355.0,47354.0,0.26701806]
[1633093729982,1.350802,47355.0,47354.0,0.26701806]
[1633093731387,1.350802,47355.0,47354.0,0.29701806]
[1633093731586,0.228802,47355.0,47354.0,0.29898925]
[1633093731783,0.00999,47355.0,47354.0,0.29898925]
[1633093731983,0.00999,47355.0,47354.0,0.33998925]
[1633093733184,0.00999,47355.0,47354.0,0.26898925]
[1633093733842,0.00999,47355.0,47354.0,0.31298925]
[1633093734243,0.06397,47355.0,47354.0,0.30675825]
[1633093735446,0.06397,47355.0,47354.0,0.06908925]
[1633093735845,1.18597,47355.0,47354.0,0.11308925]
[1633093736045,0.06397,47355.0,47354.0,0.11308925]
[1633093736447,0.06397,47355.0,47352.0,0.14429225]
[1633093737047,1.18597,47355.0,47352.0,0.14429225]
[1633093738250,0.2696409,47353.0,47352.0,0.14429225]
[1633093738451,0.05398,47353.0,47352.0,0.14429225]
[1633093739651,0.05398,47353.0,47352.0,0.18629225]
[1633093741048,0.05398,47353.0,47352.0,0.18529225]
[1633093741448,0.05398,47353.0,47352.0,0.37879225]
[1633093741648,0.05398,47353.0,47352.0,0.42179225]
[1633093742248,0.05398,47353.0,47352.0,0.33679225]
[1633093742848,0.05398,47353.0,47352.0,0.28149273]
[1633093743250,0.05398,47353.0,47352.0,0.28649273]
[1633093744654,0.048625,47353.0,47352.0,0.33049273]
[1633093745653,0.048625,47353.0,47352.0,0.33220375]
[1633093745854,0.048625,47353.0,47352.0,0.64898375]
[1633093746857,0.048625,47353.0,47352.0,0.33220375]
[1633093747658,0.048625,47353.0,47352.0,0.28820375]